fUSD/lending_fUSD_20260201
["ID","MTS","AMOUNT","RATE_DAILY","PERIOD"]
[404229045,1769978706803,-1280.88388878,0.00054794,36]
[404229046,1769978706889,-500.0,0.00054794,36]
[404229047,1769978706979,-151.0,0.00054794,36]
[404229048,1769978707060,-187.78006525,0.00054794,36]
[404229049,1769978707130,-500.0,0.00054794,36]
[404229050,1769978707203,-150.0,0.00054795,120]
[404229051,1769978707274,-150.0,0.00054795,120]
[404229052,1769978707342,-150.86261241,0.00054795,120]
[404229053,1769978707409,-150.0,0.00054795,120]
[404229054,1769978707478,-154.20677156,0.00054795,120]
[404229055,1769978707730,-150.0,0.00054795,120]
[404229056,1769978707803,-150.0,0.00054795,120]
[404229057,1769978707870,-150.0,0.00054795,120]
[404229058,1769978707940,-150.0,0.00054795,120]
[404229059,1769978708009,-150.0,0.00054795,120]
[404229060,1769978708078,-159.53337511,0.00054795,120]
[404229061,1769978708150,-179.6970665,0.00054795,120]
[404229062,1769978708220,-150.0,0.00054795,120]
[404229063,1769978708289,-162.3793229,0.00054795,120]
[404229064,1769978708356,-150.0,0.00054795,120]
[404229065,1769978708430,-150.0,0.00054795,120]
[404229066,1769978708497,-195.47157131,0.00054795,120]
[404229067,1769978708566,-150.0,0.00054795,120]
[404229068,1769978708635,-800.0,0.00054795,36]
[404229069,1769978708703,-800.0,0.00054795,36]
[404229070,1769978708772,-1376.0,0.00054795,120]
[404229071,1769978708840,-150.0,0.000548,120]
[404229072,1769978708910,-150.0,0.00054805,120]
[404229073,1769978708981,-150.0,0.00054806,120]
[404229074,1769978709049,-150.0,0.00054807,120]
[404229075,1769978709118,-150.0,0.00054807,120]
[404229076,1769978709193,-150.0,0.0005481,120]
[404229077,1769978709262,-150.0,0.0005481,120]
[404229078,1769978709328,-150.0,0.00054812,120]
[404229079,1769978709398,-150.0,0.00054812,120]
[404229080,1769978709465,-150.0,0.00054816,120]
[404229081,1769978709532,-150.0,0.00054818,120]
[404229082,1769978709600,-150.0,0.0005482,120]
[404229083,1769978709668,-150.0,0.0005482,120]
[404229084,1769978709736,-150.0,0.00054824,120]
[404229085,1769978709806,-150.0,0.00054826,120]
[404229086,1769978709873,-150.0,0.00054826,120]
[404229087,1769978709943,-150.0,0.00054827,120]
[404229088,1769978710014,-150.0,0.00054829,120]
[404229089,1769978710084,-150.0,0.0005483,120]
[404229090,1769978710155,-150.0,0.00054833,120]
[404229091,1769978710225,-150.0,0.00054833,120]
[404229092,1769978710296,-150.0,0.00054836,120]
[404229093,1769978710367,-150.0,0.00054838,120]
[404229094,1769978710444,-150.0,0.00054841,120]
[404229095,1769978710517,-150.0,0.00054842,120]
[404229096,1769978710590,-150.0,0.00054842,120]
[404229097,1769978710665,-150.0,0.00054846,120]
[404229098,1769978710739,-150.0,0.00054846,120]
[404229099,1769978710815,-150.0,0.00054846,120]
[404229100,1769978710890,-150.0,0.00054847,120]
[404229101,1769978710968,-150.0,0.00054849,120]
[404229102,1769978711045,-150.0,0.00054853,120]
[404229103,1769978711121,-150.0,0.00054858,120]
[404229104,1769978711201,-150.0,0.00054858,120]
[404229105,1769978711299,-150.0,0.00054859,120]
[404229106,1769978711402,-150.0,0.00054859,120]
[404229107,1769978711504,-150.0,0.00054859,120]
[404229108,1769978711607,-150.0,0.00054859,120]
[404229109,1769978711709,-150.0,0.00054863,120]
[404229110,1769978711810,-150.0,0.00054863,120]
[404229111,1769978711912,-150.0,0.00054863,120]
[404229112,1769978712016,-150.0,0.00054865,120]
[404229113,1769978712114,-150.0,0.0005487,120]
[404229114,1769978712213,-150.0,0.00054871,120]
[404229115,1769978712312,-150.0,0.00054872,120]
[404229116,1769978712413,-150.0,0.00054872,120]
[404229117,1769978712516,-150.0,0.00054874,120]
[404229118,1769978712619,-150.0,0.00054874,120]
[404229119,1769978712720,-150.0,0.00054877,120]
[404229120,1769978712813,-150.0,0.0005488,120]
[404229121,1769978712912,-150.0,0.00054881,120]
[404229122,1769978712997,-150.0,0.00054883,120]
[404229123,1769978713085,-150.0,0.00054884,120]
[404229124,1769978713190,-150.0,0.00054884,120]
[404229125,1769978713291,-150.0,0.00054888,120]
[404229126,1769978713373,-150.0,0.00054889,120]
[404229127,1769978713484,-150.0,0.00054889,120]
[404229128,1769978713590,-150.0,0.00054892,120]
[404229129,1769978713698,-150.0,0.00054894,120]
[404229130,1769978713802,-150.0,0.00054897,120]
[404229131,1769978713909,-150.0,0.00054897,120]
[404229132,1769978714014,-150.0,0.00054897,120]
[404229133,1769978714105,-500.0,0.000549,30]
[404229134,1769978714209,-500.0,0.000549,120]
[404229135,1769978714310,-551.21433069,0.000549,120]
[404229136,1769978714414,-150.0,0.000549,120]
[404229137,1769978714517,-150.0,0.00054903,120]
[404229138,1769978714620,-150.0,0.00054905,120]
[404229139,1769978714723,-150.0,0.00054905,120]
[404229140,1769978714825,-150.0,0.00054906,120]
[404229141,1769978714929,-150.0,0.0005491,120]
[404229142,1769978715036,-150.0,0.0005491,120]
[404229143,1769978715142,-150.0,0.00054912,120]
[404229144,1769978715249,-150.0,0.00054913,120]
[404229145,1769978715357,-150.0,0.00054914,120]
[404229146,1769978715462,-150.0,0.00054918,120]
[404229147,1769978715568,-150.0,0.00054921,120]
[404229148,1769978715653,-150.0,0.00054921,120]
[404229149,1769978715756,-150.0,0.00054923,120]
[404229150,1769978715860,-150.0,0.00054923,120]
[404229151,1769978716111,-150.0,0.00054924,120]
[404229152,1769978716216,-150.0,0.00054924,120]
[404229153,1769978716305,-150.0,0.0005493,120]
[404229154,1769978716410,-150.0,0.00054932,120]
[404229155,1769978716516,-150.0,0.00054932,120]
[404229156,1769978716625,-150.0,0.00054932,120]
[404229157,1769978716728,-150.0,0.00054935,120]
[404229158,1769978716833,-150.0,0.00054935,120]
[404229159,1769978716939,-150.0,0.00054936,120]
[404229160,1769978717044,-150.0,0.00054936,120]
[404229161,1769978717151,-150.0,0.00054937,120]
[404229162,1769978717256,-150.0,0.00054937,120]
[404229163,1769978717361,-150.0,0.00054941,120]
[404229164,1769978717453,-150.0,0.00054946,120]
[404229165,1769978717556,-503.0,0.00054946,36]
[404229166,1769978717658,-150.0,0.00054947,120]
[404229167,1769978717761,-150.0,0.00054949,120]
[404229168,1769978717862,-150.0,0.00054949,120]
[404229169,1769978717966,-150.0,0.00054949,120]
[404229170,1769978718071,-709.96875,0.0005495,120]
[404229171,1769978718175,-709.96876,0.0005495,120]
[404229172,1769978718262,-709.96876,0.0005495,120]
[404229173,1769978718362,-709.96876,0.0005495,120]
[404229174,1769978718444,-709.96875,0.0005495,120]
[404229175,1769978718540,-709.96875,0.0005495,120]
[404229176,1769978718634,-150.0,0.00054953,120]
[404229177,1769978718713,-150.0,0.00054953,120]
[404229178,1769978718788,-150.0,0.00054953,120]
[404229179,1769978718877,-150.0,0.00054957,120]
[404229180,1769978718950,-150.0,0.00054959,120]
[404229181,1769978719023,-150.0,0.00054961,120]
[404229182,1769978719096,-150.0,0.00054961,120]
[404229183,1769978719181,-150.0,0.00054965,120]
[404229184,1769978719264,-150.0,0.00054966,120]
[404229185,1769978719335,-150.0,0.00054968,120]
[404229186,1769978719420,-150.0,0.00054968,120]
[404229187,1769978719506,-150.0,0.00054968,120]
[404229188,1769978719577,-150.0,0.00054971,120]
[404229189,1769978719648,-150.0,0.00054974,120]
[404229190,1769978719731,-150.0,0.00054974,120]
[404229191,1769978719800,-150.0,0.00054977,120]
[404229192,1769978719868,-150.0,0.00054978,120]
[404229193,1769978719940,-150.0,0.00054982,120]
[404229194,1769978720010,-150.0,0.00054983,120]
[404229195,1769978720085,-150.0,0.00054984,120]
[404229196,1769978720162,-150.0,0.00054984,120]
[404229197,1769978720231,-150.0,0.00054987,120]
[404229198,1769978720301,-150.0,0.00054987,120]
[404229199,1769978720370,-150.0,0.00054988,120]
[404229200,1769978720439,-150.0,0.00054989,120]
[404229201,1769978720511,-150.0,0.00054994,120]
[404229202,1769978720583,-537.6845,0.00054999,30]
[404229203,1769978720655,-162.380719,0.00054999,30]
[404229204,1769978720722,-250.0,0.00054999,30]
[404229205,1769978720792,-250.0,0.00054999,30]
[404229206,1769978720864,-500.0,0.00054999,30]
[404229207,1769978720935,-500.0,0.00054999,30]
[404229208,1769978721004,-151.0,0.00054999,30]
[404229209,1769978721076,-557.5788265,0.00054999,60]
[404229210,1769978721144,-168.3888056,0.00054999,60]
[404229211,1769978721214,-250.0,0.00054999,60]
[404229212,1769978721283,-250.0,0.00054999,60]
[404229213,1769978721352,-160.0,0.00054999,30]
[404229214,1769978721419,-500.0,0.00054999,60]
[404229215,1769978721487,-275.7230702,0.00054999,60]
[404229216,1769978721555,-250.0,0.00054999,100]
[404229217,1769978721626,-500.0,0.00054999,60]
[404229218,1769978721698,-250.0,0.00054999,100]
[404229219,1769978721771,-160.0,0.00054999,60]
[404229220,1769978721845,-500.0,0.00054999,100]
[404229221,1769978721918,-250.0,0.00054999,105]
[404229222,1769978721989,-500.0,0.00054999,100]
[404229223,1769978722061,-250.0,0.00054999,105]
[404229224,1769978722133,-160.0,0.00054999,100]
[404229225,1769978722203,-500.0,0.00054999,105]
[404229226,1769978722279,-500.0,0.00054999,105]
[404229227,1769978722348,-160.0,0.00054999,105]
[404229228,1769978722418,-250.0,0.00054999,30]
[404229229,1769978722489,-250.0,0.00054999,60]
[404229230,1769978722562,-250.0,0.00054999,100]
[404229231,1769978722632,-250.0,0.00054999,105]
[404229232,1769978722703,-151.0,0.00054999,30]
[404229233,1769978722771,-500.0,0.00054999,30]
[404229234,1769978722840,-151.0,0.00054999,60]
[404229235,1769978722915,-500.0,0.00054999,60]
[404229236,1769978722986,-151.0,0.00054999,100]
[404229237,1769978723059,-500.0,0.00054999,100]
[404229238,1769978723132,-151.0,0.00054999,105]
[404229239,1769978723204,-500.0,0.00054999,105]
[404229240,1769978723280,-500.0,0.00054999,30]
[404229241,1769978723352,-500.0,0.00054999,60]
[404229242,1769978723429,-151.0,0.00054999,30]
[404229243,1769978723503,-500.0,0.00054999,100]
[404229244,1769978723575,-151.0,0.00054999,60]
[404229245,1769978723648,-500.0,0.00054999,105]
[404229246,1769978723923,-151.0,0.00054999,100]
[404229247,1769978723998,-151.0,0.00054999,105]
[404229248,1769978724071,-559.19188,0.00054999,30]
[404229249,1769978724161,-579.88197956,0.00054999,60]
[404229250,1769978724234,-601.3376128,0.00054999,100]
[404229251,1769978724309,-623.58710448,0.00054999,105]
[404229252,1769978724385,-200.0,0.00054999,30]
[404229253,1769978724464,-207.4,0.00054999,60]
[404229254,1769978724540,-250.0,0.00054999,30]
[404229255,1769978724617,-500.0,0.00054999,30]
[404229256,1769978724694,-250.0,0.00054999,60]
[404229257,1769978724767,-500.0,0.00054999,60]
[404229258,1769978724837,-600.0,0.00054999,30]
[404229259,1769978724908,-250.0,0.00054999,100]
[404229260,1769978724980,-500.0,0.00054999,100]
[404229261,1769978725052,-600.0,0.00054999,60]
[404229262,1769978725123,-500.0,0.00054999,105]
[404229263,1769978725192,-600.0,0.00054999,100]
[404229264,1769978725267,-250.0,0.00054999,105]
[404229265,1769978725339,-600.0,0.00054999,105]
[404229266,1769978725410,-250.0,0.00054999,30]
[404229267,1769978725478,-250.0,0.00054999,60]
[404229268,1769978725549,-250.0,0.00054999,100]
[404229269,1769978725621,-250.0,0.00054999,105]
[404229270,1769978725690,-220.0,0.00054999,30]
[404229271,1769978725759,-220.0,0.00054999,60]
[404229272,1769978725828,-500.0,0.00054999,30]
[404229273,1769978725897,-500.0,0.00054999,60]
[404229274,1769978725968,-220.0,0.00054999,100]
[404229275,1769978726039,-500.0,0.00054999,100]
[404229276,1769978726108,-220.0,0.00054999,105]
[404229277,1769978726179,-500.0,0.00054999,105]
[404229278,1769978726248,-152.38963738,0.00054999,30]
[404229279,1769978726318,-500.0,0.00054999,30]
[404229280,1769978726392,-500.0,0.00054999,60]
[404229281,1769978726462,-500.0,0.00054999,100]
[404229282,1769978726531,-500.0,0.00054999,105]
[404229283,1769978726602,-162.380719,0.00054999,30]
[404229284,1769978726673,-250.0,0.00054999,30]
[404229285,1769978726741,-168.3888056,0.00054999,60]
[404229286,1769978726810,-250.0,0.00054999,60]
[404229287,1769978726878,-174.61919141,0.00054999,100]
[404229288,1769978726947,-250.0,0.00054999,100]
[404229289,1769978727016,-181.08010149,0.00054999,105]
[404229290,1769978727087,-250.0,0.00054999,105]
[404229291,1769978727158,-162.380719,0.00054999,30]
[404229292,1769978727227,-1107.63007,0.00054999,30]
[404229293,1769978727297,-168.3888056,0.00054999,60]
[404229294,1769978727365,-1148.61238259,0.00054999,60]
[404229295,1769978727432,-174.61919141,0.00054999,100]
[404229296,1769978727499,-1191.11104075,0.00054999,100]
[404229297,1769978727567,-181.08010149,0.00054999,105]
[404229298,1769978727634,-1235.18214925,0.00054999,105]
[404229299,1769978727702,-500.0,0.00054999,30]
[404229300,1769978727769,-500.0,0.00054999,60]
[404229301,1769978727839,-500.0,0.00054999,100]
[404229302,1769978727904,-500.0,0.00054999,105]
[404229303,1769978727971,-151.0,0.00054999,30]
[404229304,1769978728038,-151.0,0.00054999,60]
[404229305,1769978728107,-151.0,0.00054999,100]
[404229306,1769978728176,-151.0,0.00054999,105]
[404229307,1769978728247,-162.380719,0.00054999,30]
[404229308,1769978728315,-168.3888056,0.00054999,60]
[404229309,1769978728387,-174.61919141,0.00054999,100]
[404229310,1769978728456,-181.08010149,0.00054999,105]
[404229311,1769978728527,-500.0,0.00054999,30]
[404229312,1769978728595,-500.0,0.00054999,60]
[404229313,1769978728661,-500.0,0.00054999,100]
[404229314,1769978728728,-500.0,0.00054999,105]
[404229315,1769978728795,-1049.25,0.00055,120]
[404229316,1769978728863,-150.0,0.00055,40]
[404229317,1769978728931,-200.0,0.00055,120]
[404229318,1769978728997,-239.85,0.00055,120]
[404229319,1769978729066,-159.9,0.00055,120]
[404229320,1769978729135,-175.61913933,0.00055,120]
[404229321,1769978729204,-278.97569351,0.00055,120]
[404229322,1769978729272,-277.48557304,0.00055,120]
[404229323,1769978729339,-159.19856482,0.00055,120]
[404229324,1769978729408,-289.05610167,0.00055,120]
[404229325,1769978729476,-185.72454995,0.00055,120]
[404229326,1769978729545,-255.81705829,0.00055,120]
[404229327,1769978729614,-247.54832364,0.00055,120]
[404229328,1769978729681,-192.84932603,0.00055,120]
[404229329,1769978729751,-217.37906494,0.00055,120]
[404229330,1769978729820,-195.42535132,0.00055,120]
[404229331,1769978729888,-184.33048139,0.00055,120]
[404229332,1769978729958,-214.87214976,0.00055,120]
[404229333,1769978730028,-500.0,0.00055,30]
[404229334,1769978730096,-253.0,0.00055,85]
[404229335,1769978730165,-1191.26,0.00055,120]
[404229336,1769978730233,-151.0,0.000553,120]
[404229337,1769978730301,-500.0,0.00055399,87]
[404229338,1769978730369,-156.587,0.00055399,87]
[404229339,1769978730437,-518.5,0.00055399,87]
[404229340,1769978730503,-250.0,0.00055399,87]
[404229341,1769978730725,-250.0,0.00055399,87]
[404229342,1769978730798,-500.0,0.00055399,87]
[404229343,1769978730871,-151.0,0.00055399,87]
[404229344,1769978730941,-160.0,0.00055399,87]
[404229345,1769978731010,-250.0,0.00055399,87]
[404229346,1769978731078,-151.0,0.00055399,87]
[404229347,1769978731147,-500.0,0.00055399,87]
[404229348,1769978731216,-500.0,0.00055399,87]
[404229349,1769978731287,-151.0,0.00055399,87]
[404229350,1769978731356,-539.24,0.00055399,87]
[404229351,1769978731423,-500.0,0.00055399,87]
[404229352,1769978731489,-250.0,0.00055399,87]
[404229353,1769978731558,-500.0,0.00055399,87]
[404229354,1769978731627,-600.0,0.00055399,87]
[404229355,1769978731695,-250.0,0.00055399,87]
[404229356,1769978731764,-311.1,0.00055399,87]
[404229357,1769978731836,-220.0,0.00055399,87]
[404229358,1769978731903,-500.0,0.00055399,87]
[404229359,1769978731972,-151.0,0.00055399,87]
[404229360,1769978732040,-500.0,0.00055399,87]
[404229361,1769978732110,-156.587,0.00055399,87]
[404229362,1769978732184,-250.0,0.00055399,87]
[404229363,1769978732254,-156.587,0.00055399,87]
[404229364,1769978732322,-1068.11,0.00055399,87]
[404229365,1769978732392,-500.0,0.00055399,87]
[404229366,1769978732459,-151.0,0.00055399,87]
[404229367,1769978732523,-156.587,0.00055399,87]
[404229368,1769978732593,-500.0,0.00055399,87]
[404229369,1769978732661,-150.0,0.000554,106]
[404229370,1769978732729,-152.0,0.000554,120]
[404229371,1769978732797,-500.0,0.00055499,120]
[404229372,1769978732863,-151.0,0.00055499,120]
[404229373,1769978732929,-500.0,0.00055499,120]
[404229374,1769978732995,-250.0,0.00055499,120]
[404229375,1769978733064,-250.0,0.00055499,120]
[404229376,1769978733132,-500.0,0.00055499,120]
[404229377,1769978733200,-151.0,0.00055499,120]
[404229378,1769978733268,-160.0,0.00055499,120]
[404229379,1769978733336,-250.0,0.00055499,120]
[404229380,1769978733404,-151.0,0.00055499,120]
[404229381,1769978733471,-500.0,0.00055499,120]
[404229382,1769978733537,-500.0,0.00055499,120]
[404229383,1769978733605,-231.38568608,0.00055499,120]
[404229384,1769978733672,-151.0,0.00055499,120]
[404229385,1769978733739,-520.0,0.00055499,120]
[404229386,1769978733805,-500.0,0.00055499,120]
[404229387,1769978733871,-250.0,0.00055499,120]
[404229388,1769978733938,-500.0,0.00055499,120]
[404229389,1769978734004,-600.0,0.00055499,120]
[404229390,1769978734071,-250.0,0.00055499,120]
[404229393,1769978734139,-300.0,0.00055499,120]
[404229397,1769978734207,-220.0,0.00055499,120]
[404229399,1769978734273,-500.0,0.00055499,120]
[404229400,1769978734339,-465.38851332,0.00055499,120]
[404229401,1769978734406,-151.0,0.00055499,120]
[404229402,1769978734473,-500.0,0.00055499,120]
[404229403,1769978734541,-151.0,0.00055499,120]
[404229404,1769978734611,-250.0,0.00055499,120]
[404229405,1769978734680,-151.0,0.00055499,120]
[404229406,1769978734748,-1030.0,0.00055499,120]
[404229407,1769978734816,-500.0,0.00055499,120]
[404229408,1769978734882,-151.0,0.00055499,120]
[404229409,1769978734951,-151.0,0.00055499,120]
[404229410,1769978735020,-500.0,0.00055499,120]
[404229411,1769978735089,-2319787.9655557,0.000555,120]
[404229412,1769978735160,-4955634.54156216,0.000555,120]
[404229413,1769978736504,-293.206,0.00037589,30]
[404229414,1769978736573,-151.0,0.00038356,120]
[404229415,1769978736640,-151.0,0.00038356,120]
[404229416,1769978736712,-151.0,0.00038356,120]
[404229417,1769978736781,-151.0,0.00038356,120]
[404229418,1769978736849,-151.0,0.00038356,120]
[404229419,1769978736919,-151.0,0.00038356,120]
[404229420,1769978736987,-151.0,0.00038356,120]
[404229421,1769978737057,-151.0,0.00042082,120]
[404229422,1769978737128,-500.0,0.00043287,120]
[404229423,1769978737196,-500.0,0.00043287,120]
[404229424,1769978737265,-500.0,0.00043287,120]
[404229425,1769978737334,-500.0,0.00043287,120]
[404229426,1769978737401,-500.0,0.00043287,120]
[404229427,1769978737470,-500.0,0.00043287,120]
[404229428,1769978737538,-500.0,0.00043287,120]
[404229429,1769978737605,-500.0,0.00043287,120]
[404229430,1769978737672,-500.0,0.00043287,120]
[404229431,1769978737738,-500.0,0.00043287,120]
[404229432,1769978737805,-500.0,0.00043287,120]
[404229433,1769978737874,-500.0,0.00043287,120]
[404229434,1769978737942,-500.0,0.00043287,120]
[404229435,1769978738012,-500.0,0.00043287,120]
[404229436,1769978738086,-500.0,0.00043287,120]
[404229437,1769978738157,-500.0,0.00043287,120]
[404229438,1769978738229,-500.0,0.00043287,120]
[404229439,1769978738301,-500.0,0.00043287,120]
[404229440,1769978738369,-500.0,0.00043287,120]
[404229441,1769978738438,-500.0,0.00043287,120]
[404229442,1769978738507,-500.0,0.00043287,120]
[404229443,1769978738577,-500.0,0.00043287,120]
[404229444,1769978738647,-500.0,0.00043287,120]
[404229445,1769978738721,-500.0,0.00043287,120]
[404229446,1769978738792,-500.0,0.00043287,120]
[404229447,1769978738860,-500.0,0.00043287,120]
[404229448,1769978738932,-500.0,0.00043287,120]
[404229449,1769978739003,-500.0,0.00043287,120]
[404229450,1769978739072,-500.0,0.00043287,120]
[404229451,1769978739142,-500.0,0.00043287,120]
[404229452,1769978739211,-500.0,0.00043287,120]
[404229453,1769978739278,-500.0,0.00043287,120]
[404229454,1769978739344,-500.0,0.00043287,120]
[404229455,1769978739411,-500.0,0.00043287,120]
[404229456,1769978739478,-500.0,0.00043287,120]
[404229457,1769978739545,-500.0,0.00043287,120]
[404229458,1769978739613,-500.0,0.00043287,120]
[404229459,1769978739680,-500.0,0.00043287,120]
[404229460,1769978739748,-500.0,0.00043287,120]
[404229461,1769978739814,-500.0,0.00043287,120]
[404229462,1769978739880,-500.0,0.00043287,120]
[404229463,1769978739948,-500.0,0.00043287,120]
[404229464,1769978740017,-500.0,0.00043287,120]
[404229465,1769978740084,-500.0,0.00043287,120]
[404229466,1769978740150,-500.0,0.00043287,120]
[404229467,1769978740216,-500.0,0.00043287,120]
[404229468,1769978740284,-500.0,0.00043287,120]
[404229469,1769978740353,-375.13632991,0.00043287,120]
[404229470,1769978740418,-500.0,0.00043287,120]
[404229471,1769978740487,-500.0,0.00043287,120]
[404229472,1769978740579,-232.51,0.00045,30]
[404229473,1769978740649,-232.51,0.0004725,30]
[404229474,1769978740720,-232.51,0.00049613,30]
[404229475,1769978740790,-232.51,0.00052093,30]
[404229476,1769978740864,-44365.45843784,0.000555,120]
[404229477,1769978740936,-5000000.0,0.000555,120]
[404229478,1769978741008,-3928328.15923225,0.000555,120]
[404229479,1769978794684,503.0,0.00019,36]
[404229480,1769978794765,503.0,0.0002022,36]
[404229483,1769978951090,-950.6,0.00012896,2]
[404229484,1769978951112,-205.34429921,0.00012896,2]
[404229486,1769979009504,-503.0,0.0002144,36]
[404229487,1769979009541,-503.0,0.0002266,37]
[404229488,1769979009575,-503.0,0.0002388,37]
[404229489,1769979009610,-503.0,0.000251,38]
[404229490,1769979009643,-503.0,0.0002632,38]
[404229491,1769979009676,-503.0,0.0002754,39]
[404229492,1769979009709,-503.0,0.0002876,39]
[404229493,1769979009744,-503.0,0.0002998,40]
[404229494,1769979009780,-503.0,0.000312,40]
[404229495,1769979009815,-503.0,0.0003242,41]
[404229496,1769979009852,-503.0,0.0003364,41]
[404229497,1769979009888,-503.0,0.0003486,42]
[404229498,1769979009925,-150.0,0.00036,30]
[404229499,1769979009961,-503.0,0.0003608,42]
[404229500,1769979009997,-503.0,0.000373,43]
[404229501,1769979010032,-151.0,0.00038356,120]
[404229502,1769979010065,-158.02,0.000384,30]
[404229503,1769979010100,-503.0,0.0003852,43]
[404229504,1769979010136,-814.047,0.00039662,55]
[404229505,1769979010343,-503.0,0.0003974,44]
[404229506,1769979010378,-158.02,0.000398,30]
[404229507,1769979010412,-503.0,0.0004096,44]
[404229508,1769979010447,-171.0,0.00041,90]
[404229509,1769979010482,-158.02,0.000416,30]
[404229510,1769979010517,-503.0,0.0004218,45]
[404229511,1769979010565,-794.5,0.0004262,60]
[404229512,1769979010606,-151.0,0.00042998,120]
[404229513,1769979010644,-151.0,0.00042998,120]
[404229514,1769979010681,-151.0,0.00042998,30]
[404229515,1769979010718,-155.275566,0.00042998,120]
[404229516,1769979010755,-151.0,0.00042998,120]
[404229517,1769979010792,-155.275566,0.00042998,120]
[404229518,1769979010829,-155.275566,0.00042998,120]
[404229519,1769979010866,-155.275566,0.00042998,120]
[404229520,1769979010906,-158.02,0.000432,30]
[404229521,1769979010946,-500.0,0.00043287,120]
[404229522,1769979010983,-500.0,0.00043287,120]
[404229523,1769979011020,-500.0,0.00043287,120]
[404229524,1769979011055,-500.0,0.00043287,120]
[404229525,1769979011096,-500.0,0.00043287,120]
[404229526,1769979011134,-500.0,0.00043287,120]
[404229527,1769979011171,-500.0,0.00043287,120]
[404229528,1769979011206,-500.0,0.00043287,120]
[404229529,1769979011240,-500.0,0.00043287,120]
[404229530,1769979011275,-500.0,0.00043287,120]
[404229531,1769979011308,-500.0,0.00043287,120]
[404229532,1769979011342,-500.0,0.00043287,120]
[404229533,1769979011376,-500.0,0.00043287,120]
[404229534,1769979011415,-500.0,0.00043287,120]
[404229535,1769979011451,-500.0,0.00043287,120]
[404229536,1769979011489,-500.0,0.00043287,120]
[404229537,1769979011525,-500.0,0.00043287,120]
[404229538,1769979011561,-500.0,0.00043287,120]
[404229539,1769979011596,-500.0,0.00043287,120]
[404229540,1769979011632,-500.0,0.00043287,120]
[404229541,1769979011668,-500.0,0.00043287,120]
[404229542,1769979011706,-500.0,0.00043287,120]
[404229543,1769979011739,-500.0,0.00043287,120]
[404229544,1769979011774,-500.0,0.00043287,120]
[404229545,1769979011808,-500.0,0.00043287,120]
[404229546,1769979011843,-500.0,0.00043287,120]
[404229547,1769979011878,-500.0,0.00043287,120]
[404229548,1769979011914,-500.0,0.00043287,120]
[404229549,1769979011949,-500.0,0.00043287,120]
[404229550,1769979011988,-500.0,0.00043287,120]
[404229551,1769979012024,-500.0,0.00043287,120]
[404229552,1769979012059,-500.0,0.00043287,120]
[404229553,1769979012093,-500.0,0.00043287,120]